Cogmind - Beta 12 @@@ ROGUE MODE // 2023.03.25 @ 13:49:00 Player: maxwell Result: Destroyed by D-53 Grenadier with Mini Grenade Launcher Performance ------------- Evolutions (0) 0 Regions Visited (4) 800 Robots Destroyed (27) 135 Value Destroyed (825) 825 Prototype IDs (6) 120 Alien Tech Used (0) 0 Bonus (14) 14 TOTAL SCORE: 1894 Bonus ------- Follower Combat Kills 14 Cogmind --------- Core Integrity 0/250 Matter 289/300 Energy 76/100 System Corruption 0% Temperature Cool (50) Movement Core (700) Ox13 Location -9/Mines Parts ------- > --- POWER (1) -------- (None) > --- PROPULSION (2) --- (None) > --- UTILITY (2) ------ High-capacity Storage Unit > --- WEAPON (2) ------- Medium Laser > --- INVENTORY (20) --- Disposable Heat Sink Disposable Heat Sink Disposable Heat Sink Disposable Heat Sink Medium Laser Medium Laser Small Laser Mini Grenade Launcher Mini Grenade Launcher Mini Grenade Launcher Mini Grenade Launcher Peak State ------------ > --- POWER ------------ Light Ion Engine > --- PROPULSION ------- Light Treads Wheel > --- UTILITY ---------- Large Storage Unit Medium Armor Plating > --- WEAPON ----------- Medium Laser Medium Laser > --- INVENTORY -------- Disposable Heat Sink Disposable Heat Sink Disposable Heat Sink Disposable Heat Sink Medium Armor Plating Medium Armor Plating Medium Laser Medium Laser Small Laser Beam Cannon Mini Grenade Launcher Mini Grenade Launcher Mini Grenade Launcher Mini Grenade Launcher [Rating: 10] Favorites ----------- Power Light Ion Engine Engine Light Ion Engine Propulsion Light Treads Treads Light Treads Wheel Wheel Utility Medium Armor Plating Storage Large Storage Unit Protection Medium Armor Plating Weapon Medium Laser Energy Gun Medium Laser Energy Cannon Beam Cannon Ballistic Gun Light Assault Rifle Launcher Grenade Launcher Build | -11 -10 -10 -10 -9 ------- Run | Jun Mat Min Exi Min Slots Evolved . | . . . . . Power . | . . . . . Propulsion . | . . . . . Utility . | . . . . . Weapon . | . . . . . Parts Attached 19 | 6 7 2 1 3 Power 2 | 1 1 . . . Engine 2 | 1 1 . . . Core . | . . . . . Reactor . | . . . . . Propulsion 3 | 2 1 . . . Treads 2 | 2 . . . . Leg . | . . . . . Wheel 1 | . 1 . . . Hover . | . . . . . Flight . | . . . . . Utility 7 | 1 3 . 1 2 Device . | . . . . . Storage 3 | 1 1 . 1 . Processor . | . . . . . Hackware . | . . . . . Protection 4 | . 2 . . 2 Artifact . | . . . . . Weapon 7 | 2 2 2 . 1 Energy Gun 3 | . 2 . . 1 Energy Cannon 1 | . . 1 . . Ballistic Gun 2 | 2 . . . . Ballistic Cannon . | . . . . . Launcher 1 | . . 1 . . Special Weapon . | . . . . . Impact Weapon . | . . . . . Slashing Weapon . | . . . . . Piercing Weapon . | . . . . . Special Melee Weapon . | . . . . . Unidentified Prototypes . | . . . . . Parts Lost 11 | . 3 . . 8 Power 2 | . 1 . . 1 Propulsion 3 | . 1 . . 2 Utility 4 | . 1 . . 3 Weapon 2 | . . . . 2 Highest Loss Streak 8 | . 1 . . 8 To Critical Strikes . | . . . . . Average Slot Usage (%) 97 | . 94 100 100 96 Engine 11 | . 9 14 14 14 Treads 18 | . 25 14 14 12 Wheel 8 | . 2 14 14 14 Storage 14 | . 14 14 14 14 Protection 13 | . 13 14 14 12 Energy Gun 8 | . 11 8 . 2 Energy Cannon 5 | . . 6 14 14 Ballistic Gun 7 | . 16 . . . Launcher 7 | . . 12 14 10 Naked Turns . | . . . . . Heaviest Build 56 | 10 34 36 56 56 Greatest Support 40 | 40 40 20 20 20 Greatest Overweight (x) 5 | . 3 3 2 5 Average Overweight (x) 1 | . . 2 1 2 Largest Inventory Capacity 20 | 8 15 15 20 20 Average Capacity 14 | 7 12 15 16 20 Most Carried 15 | 2 15 15 15 15 Average Carried 11 | 1 9 14 14 14 Final Capacity 20 | 8 15 15 20 20 Final Carried 15 | 2 15 14 15 11 Class Distribution -------------------- 100% | Mutant Dominant Class ---------------- Mutant | -10/Materials Mutant | -10/Mines Mutant | -10/Exiles Mutant | -9/Mines Resources | -11 -10 -10 -10 -9 ----------- Run | Jun Mat Min Exi Min Matter Collected 557 | 244 201 112 . . Remotely . | . . . . . Salvage Created 772 | . 542 230 . . Parts 52 | . 34 18 . . Haulers Intercepted . | . . . . . Recyclers Shooed 2 | . 2 . . . Parts Field Recycled . | . . . . . Retrieved Matter . | . . . . . Parts Self-Destructed . | . . . . . Prevented . | . . . . . Kills | -11 -10 -10 -10 -9 ------- Run | Jun Mat Min Exi Min Combat Hostiles Destroyed 20 | . 10 9 . 1 Guns 11 | . 10 . . 1 AOE 9 | . . 9 . . Classes Destroyed 6 | . 3 2 . 1 Worker 2 | . . 2 . . Builder 2 | . 2 . . . Watcher 3 | . 3 . . . Swarmer 3 | . . 3 . . Grunt 16 | . 10 6 . . Demolisher 1 | . . . . 1 Best Kill Streak 9 | . 3 9 . 1 Combat Bots Only 7 | . 2 7 . 1 Max Kills in Single Turn 4 | . 1 4 . 1 Gunslinging . | . . . . . Exploded 2 | . . 2 . . Melee . | . . . . . Uniques/NPCs Destroyed . | . . . . . Combat | -11 -10 -10 -10 -9 -------- Run | Jun Mat Min Exi Min Damage Taken 1475 | . 694 172 . 609 Core 253 | . 100 24 . 129 Absorbed by Shields . | . . . . . Core Remaining (%) 100 | 100 . . . . Volleys Fired 92 | . 77 12 . 3 Largest 2 | . 2 1 . 2 Hottest 110 | . 100 30 . 110 Shots Fired 172 | . 154 12 . 6 Gun 157 | . 154 . . 3 Cannon 3 | . . . . 3 Launcher 12 | . . 12 . . Special . | . . . . . Kinetic 136 | . 136 . . . Thermal 24 | . 18 . . 6 Explosive 12 | . . 12 . . Electromagnetic . | . . . . . Robot Hit Streak 8 | . 8 4 . 3 Robot Miss Streak 5 | . 5 1 . 3 Penetration Max . | . . . . . Secondary Targets . | . . . . . Shots Hit Robots 105 | . 97 5 . 3 Core Hits 63 | . 41 20 . 2 Critical Kills . | . . . . . Critical Parts Destroyed 1 | . 1 . . . Critical Strikes 1 | . 1 . . . Destroy 1 | . 1 . . . Melee Attacks . | . . . . . Impact . | . . . . . Slashing . | . . . . . Piercing . | . . . . . Sneak Attacks . | . . . . . Combat Hostiles . | . . . . . Follow-up Attacks . | . . . . . Damage Inflicted 1746 | . 897 807 . 42 Guns 913 | . 888 . . 25 Cannons 17 | . . . . 17 Explosions 767 | . . 767 . . Melee . | . . . . . Ramming 49 | . 9 40 . . Kinetic 746 | . 746 . . . Thermal 184 | . 142 . . 42 Explosive 767 | . . 767 . . Electromagnetic . | . . . . . Impact . | . . . . . Slashing . | . . . . . Piercing . | . . . . . Highest Corruption . | . . . . . Average Corruption . | . . . . . Corruption Purged . | . . . . . Corruption Blocked . | . . . . . Overload Shots . | . . . . . Overflow Damage 26 | . . 26 . . Projectiles . | . . . . . Explosions 26 | . . 26 . . Melee . | . . . . . Knockbacks . | . . . . . Impact . | . . . . . Kinetic . | . . . . . Secondary . | . . . . . Self-Inflicted Damage 51 | . 1 50 . . Shots 1 | . . 1 . . Rammed 10 | . 5 5 . . Targets Rammed 10 | . 5 5 . . Kicked . | . . . . . Crushed . | . . . . . Highest Temperature 132 | . 132 4 . 57 Average Temperature 26 | . 26 3 . 31 Received Heat Transfer 420 | . 402 18 . . Siege Activations . | . . . . . Robots Corrupted . | . . . . . Combat Hostiles . | . . . . . Parts Fried . | . . . . . Impact Corruptions . | . . . . . Robots Melted . | . . . . . Combat Hostiles . | . . . . . Parts Melted . | . . . . . Heat Transferred 518 | . 407 . . 111 Parts Sabotaged . | . . . . . Parts Stolen . | . . . . . Parts Stripped . | . . . . . Power Chain Reactions . | . . . . . Missiles Intercepted . | . . . . . Alert | -11 -10 -10 -10 -9 ------- Run | Jun Mat Min Exi Min Peak Influence 411 | . 200 411 . 30 Initial 49 | . . 49 . . Average 146 | . 100 232 . . Maximum Alert Level 2 | . 1 2 . . Low Security (%) 69 | 100 98 28 . 100 Level 1 20 | . 1 46 . . Level 2 10 | . . 25 . . Level 3 . | . . . . . Level 4 . | . . . . . Level 5 . | . . . . . High Security . | . . . . . Max Security . | . . . . . Squads Dispatched 6 | . 6 . . . Investigation 4 | . 4 . . . Extermination . | . . . . . Reinforcement 2 | . 2 . . . Assault . | . . . . . Garrison . | . . . . . Intercept . | . . . . . Searches Triggered . | . . . . . Construction Impeded . | . . . . . Haulers Reinforced . | . . . . . Active Scanning Responses . | . . . . . Cargo Convoy Interrupts . | . . . . . Stealth | -11 -10 -10 -10 -9 --------- Run | Jun Mat Min Exi Min Distress Signals . | . . . . . Communications Jammed . | . . . . . Distress Signals . | . . . . . Times Spotted 44 | . 16 12 . 16 Peak Tracking Total 15 | . 3 5 . 15 Tactical Retreats . | . . . . . Traps | -11 -10 -10 -10 -9 ------- Run | Jun Mat Min Exi Min Traps Triggered 4 | . 4 . . . Indirectly . | . . . . . Trap Hack Attempts . | . . . . . Triggered . | . . . . . Disarmed . | . . . . . Reprogrammed . | . . . . . Reused . | . . . . . Traps Extracted . | . . . . . Installed . | . . . . . Triggered . | . . . . . Machines | -11 -10 -10 -10 -9 ---------- Run | Jun Mat Min Exi Min Machines Disabled 6 | . . 6 . . Max in Single Turn 4 | . . 4 . . Machines Repaired . | . . . . . Machines Sabotaged . | . . . . . Overloaded Fab Kills . | . . . . . Hacking | -11 -10 -10 -10 -9 --------- Run | Jun Mat Min Exi Min Machines Accessed 9 | . 7 1 1 . Terminals 6 | . 5 1 . . Fabricators . | . . . . . Repair Stations . | . . . . . Recycling Units 2 | . 2 . . . Scanalyzers . | . . . . . Garrison Access . | . . . . . Total Hacks 34 | . 30 3 1 . Successful 19 | . 17 1 1 . Failed 15 | . 13 2 . . Catastrophic . | . . . . . Database Lockouts . | . . . . . Manual 34 | . 31 3 . . Terminals 31 | . 28 3 . . Fabricators . | . . . . . Repair Stations . | . . . . . Recycling Units 2 | . 2 . . . Scanalyzers . | . . . . . Garrison Access . | . . . . . Terminal Hacks 14 | . 12 1 1 . Record 1 | . . . 1 . Part Schematic 1 | . 1 . . . Robot Analysis 3 | . 3 . . . Prototype ID Bank 5 | . 4 1 . . Terminal Index 1 | . 1 . . . Recycling Unit Index 1 | . 1 . . . Locate Traps 1 | . 1 . . . Recall Investigation 1 | . 1 . . . Fabricator Hacks . | . . . . . Repair Station Hacks . | . . . . . Recycling Unit Hacks . | . . . . . Scanalyzer . | . . . . . Garrison Access Hacks . | . . . . . Unauthorized Hacks 5 | . 5 . . . Terminals 3 | . 3 . . . Track 1 | . 1 . . . Botnet 1 | . 1 . . . Operators 1 | . 1 . . . Fabricators . | . . . . . Repair Stations . | . . . . . Recycling Units 2 | . 2 . . . Tunnel 2 | . 2 . . . Scanalyzers . | . . . . . Garrison Access . | . . . . . Data Cores Recovered . | . . . . . Used . | . . . . . Hacking Detections 5 | . 4 1 . . Full Trace Events . | . . . . . Feedback Events . | . . . . . Feedback Blocked . | . . . . . Robot Schematics Acquired . | . . . . . Robots Built . | . . . . . Authchips . | . . . . . Time . | . . . . . Total Robot Build Rating . | . . . . . Part Schematics Acquired 1 | . 1 . . . Parts Built . | . . . . . Authchips . | . . . . . Time . | . . . . . Total Part Build Rating . | . . . . . Parts Repaired . | . . . . . Time . | . . . . . Parts Recycled . | . . . . . Recycled Matter . | . . . . . Retrieved Matter . | . . . . . Retrieved Components . | . . . . . Parts Scanalyzed . | . . . . . Part Schematics Acquired . | . . . . . Parts Damaged . | . . . . . Bothacking | -11 -10 -10 -10 -9 ------------ Run | Jun Mat Min Exi Min Used RIF Installer . | . . . . . Robots Hacked . | . . . . . Non-combat . | . . . . . Combat . | . . . . . Robot Hacks Applied . | . . . . . Relay Couplers Released . | . . . . . Fabnet Peak Effective % . | . . . . . Robots Rewired . | . . . . . Allies Hacked . | . . . . . Hacks Repelled . | . . . . . Allies | -11 -10 -10 -10 -9 -------- Run | Jun Mat Min Exi Min Total Allies 3 | . . 3 . . Largest Group 3 | . . 3 3 . Highest-Rated Group 70 | . . 70 70 . Highest-Rated Ally 31 | . . 31 31 . Total Orders . | . . . . . Ally Attacks 2 | . . 2 . . Total Damage 43 | . . 43 . . Kills 2 | . . 2 . . Allies Corrupted . | . . . . . Allies Melted . | . . . . . Intel | -11 -10 -10 -10 -9 ------- Run | Jun Mat Min Exi Min Robot Analysis Total 3 | . 3 . . . Derelict Logs Recovered 2 | . . 2 . . Drone Launches . | . . . . . Drone Recoveries . | . . . . . Exploration | -11 -10 -10 -10 -9 ------------- Run | Jun Mat Min Exi Min Turns Passed 2696 | 83 1122 953 408 130 Spaces Moved 1410 | 49 565 591 160 45 Core 5 | 5 . . . . Treads 812 | 44 429 150 160 29 Legs . | . . . . . Wheels 593 | . 136 441 . 16 Hover . | . . . . . Flight . | . . . . . Fastest Speed 50 | 50 125 125 240 140 Average Speed 168 | 148 153 154 254 258 Slowest Speed 320 | 160 240 240 320 320 Overloaded Moves . | . . . . . Propulsion Burnouts . | . . . . . Robots Hopped . | . . . . . Cave-ins Triggered . | . . . . . Exploration Rate (%) 52 | 5 96 94 55 13 Regions Visited 4 Branch Regions 3 Pre-discovered Areas 5 | . 2 2 1 . Known Exits Taken 1 | . . 1 . . Unknown Exits Taken 3 | 1 1 . 1 . Scrap Searched 1 | . . 1 . . Spaces Dug . | . . . . . Terrain Destroyed 76 | . . 76 . . Melee . | . . . . . Projectile . | . . . . . AOE 76 | . . 76 . . Terrain Rammed . | . . . . . Walls Destroyed . | . . . . . Machines Disabled . | . . . . . Actions | -11 -10 -10 -10 -9 --------- Run | Jun Mat Min Exi Min Total 1580 | 57 688 617 163 55 Wait 29 | . 16 7 3 3 Move 1406 | 48 564 590 159 45 Hop . | . . . . . Pick Up 18 | 3 15 . . . Fast Attach 10 | 5 5 . . . Attach 6 | 1 1 1 . 3 Detach . | . . . . . Swap 3 | . 1 1 1 . Drop 6 | . 4 1 . 1 Fire 92 | . 77 12 . 3 Melee . | . . . . . Ram 3 | . 1 2 . . Kick . | . . . . . Crush 7 | . 4 3 . . Escape Stasis . | . . . . . Rewire . | . . . . . Trap . | . . . . . Miscellaneous . | . . . . . Route ------- -11/Junkyard -10/Materials (discovered 4 exits: *Mat x3 / *Min) -10/Mines (discovered 3 exits: *Mat x2 / *Exi) -10/Exiles -9/Mines History --------- Turn | Location | Event 9 | -11/Junkyard | Discovered new exit (range 15) 84 | -11/Junkyard | Entered Materials 181 | -10/Materials | Discovered new exit (range 14) 306 | -10/Materials | Build established: Mutant 414 | -10/Materials | Discovered new exit (range 10) 724 | -10/Materials | Discovered new exit (range 8) 916 | -10/Materials | Discovered new exit (range 13) 1206 | -10/Materials | Entered Mines 1236 | -10/Mines | Identified exit to Materials 1347 | -10/Mines | Destroyed 7 combat bots 1508 | -10/Mines | Discovered exit to Materials (range 5) 1541 | -10/Mines | Identified exit to Exiles 1885 | -10/Mines | Learned location of Storage (-8) 2099 | -10/Mines | Escorted by a lone wolf Derelict 2143 | -10/Mines | Deemed a non-threat by the Exiles lab entrance 2159 | -10/Mines | Entered Exiles 2159 | -10/Exiles | Accompanied by 3 allies 2189 | -10/Exiles | Led the pair of lost Derelicts to a safe place 2220 | -10/Exiles | Met 8R-AWN 2258 | -10/Exiles | Met EX-HEX 2364 | -10/Exiles | Met EX-DEC 2402 | -10/Exiles | Learned location of Zion (-7) 2538 | -10/Exiles | Discovered new exit (range 10) 2567 | -10/Exiles | Entered Mines 2645 | -9/Mines | Assembled infested the area 2650 | -9/Mines | Assisted by a Guerilla fighting off Assembled 2667 | -9/Mines | Core integrity fell below 50% 2690 | -9/Mines | Core integrity fell below 20% 2697 | -9/Mines | Destroyed by D-53 Grenadier with Mini Grenade Launcher Last Messages --------------- 02670_ as-46222 destroyed. 02671_ as-78074 destroyed. 02671_ as-39077 destroyed. 02671_ as-64175 destroyed. 02671_ as-77732 destroyed. 02680_ Dropped Lrg. Storage Unit. 02685_ Lgt. Treads destroyed. 02688_ The unstable cave ceiling collapses. 02691_ Med. Armor Plating destroyed. 02691_ Lgt. Ion Engine destroyed. 02692_ The unstable cave ceiling collapses. 02693_ Wheel destroyed. 02693_ K-01 Serf collects debris. 02694_ The unstable cave ceiling collapses. 02695_ Med. Armor Plating destroyed. 02696_ D-53 Grenadier destroyed. 02696_ K-01 Serf collects debris. 02697_ The unstable cave ceiling collapses. 02697_ U-05 Engineer lays Concrete. 02697_ Beam Cannon destroyed. Map ----- +----------------------------------------------------+ | ?????????????????????????????????????????? | | ?????????????????????????????????????????? | | ?????????????????????????###?????????????? | | ???????????????????? #??# ##????????????? | | ???????????????????? ##![ #????????????? | | ???????????????????? ????????????? | | ????????????????????? ?????????????? | | ????????????????????? ?????????????? | | ?????????????????????? ?????????????? | | ?????????????????????? ??????????????? | | ???????????????????? ? ??????????????? | | ??????????????????? ? #??????????????? | | ??????????????????? # ??????????????? | | ??????????????????? # # ?????????????? | | ??????????????????# ? ????????????? | | ?????????????????? ### ????????????? | | ?????????????????# # #???????????? | | ???????????##?### ##??????????? | | ??????????## ## # ##?????????? | | ??????????# # ##??? ?? | | ??????????# % k ## | | ??????????# u %" | | ??????????## " | | ??????????# ! # #?? | | ??????????# #### ## #?? | | ??????????# @ #???####???#?? | | ??????????## ##????????????? | | ???????????## d ###?????????????? | | ????????????## ##???????????????? | | ?????????????## ##????????????????? | | ??????????????###### ##?????????????????? | | ???????????????????####??????????????????? | | ?????????????????????????????????????????? | | ?????????????????????????????????????????? | | ?????????????????????????????????????????? | | ?????????????????????????????????????????? | | ?????????????????????????????????????????? | | ?????????????????????????????????????????? | | ?????????????????????????????????????????? | | | | | | | | | | | | | | | | | | | | | | | +----------------------------------------------------+ Best States ------------- Heat Dissipation 25 Energy Generation 10 Energy Capacity 125 Matter Stores 300 Matter Capacity 300 Sight Range 16 Terrain Scan Density 10 Armor Coverage 225 Evasion (%) 40 Recoil Reduction 2 Item Schematics ----------------- Huge Storage Unit | -10/Materials | Hacked Robot Schematics ------------------ None Fabricated ------------ Nothing Alien Tech Used ----------------- None Achievements -------------- None Challenges ------------ None Game ------ Seed AssaultThiefMatrix Manual? 0 Play Time 00:10:10 Cumulative 291.0 hours Start 2023.03.25 @ 13:39:26 End 2023.03.25 @ 13:49:00 Sessions 1 Manual Loads 0 Difficulty Rogue Special Mode None Game No. 430 Rogue 407 Adventurer 4 Explorer 19 Win Type - Total 12 Types 10/0/0/2/0/0/0/0/0 Lore% 71 Gallery% 90 Achievement% 74 Wizard Run 0 Options --------- ASCII 0 Keyboard 1 Movement Numpad Keybinds 0 Fullscreen 2 Font 18/SmallcapsGlow Map View 76x50 Tactical HUD 1 Map Filters NONE Filters NONE Steam 1 RUN: 55059814-03ac-4826-919e-4559ec7e5ffe